{"text_format":"3","workbook":"xlsx","n_sheets":2,"sheets":["Skolotāja saraksts"," Saraksta dati"],"not_rendered":{"defined_names":6},"read":"whole","date_system":"1900"}

{"sheet":"Skolotāja saraksts","index":0,"n_rows":10,"n_cols":10,"rows_kept":10,"merged":[[0,1,0,2],[0,4,0,8],[2,9,6,9]]}
[null,"Skolotāja saraksts",null,"Saraksta dati","Šajā ir statusa krāsu apzīmējumi: Nav sākts ir parastajā stilā, Notiek ir R=91 G=133 B=49, Jāpabeidz šodien ir R=118 G=88 B=0, Aizturēts ir R=109 G=66 B=111, Pabeigts ir pārsvītrojums, Atcelts ir R=191 G=191 B=191 un nokavēts ir R=191 G=33 B=28."]
[null,"PRECE","KATEGORIJA","SĀKUMA DATUMS","IZPILDES DATUMS","ATLIKUŠĀS DIENAS","STATUSS","PIEZĪMES"]
[null,"Iztīrīt atvilktnes","Office",{"$f":"DATE(YEAR(TODAY()),MONTH(TODAY())-1,6)","v":"2018-04-06"},{"$f":"DATE(YEAR(TODAY()),MONTH(TODAY())-1,16)","v":"2018-04-16"},{"$f":"IFERROR(IF(COUNT(Saraksts[[#This Row],[SĀKUMA DATUMS]]:Saraksts[[#This Row],[IZPILDES DATUMS]])<>2,\"\",IF(OR(Saraksts[[#This Row],[STATUSS]]=\"Pabeigts\",Saraksts[[#This Row],[STATUSS]]=\"Atcelts\",Saraksts[[#This Row],[STATUSS]]=\"Aizturēts\"),\"\",Saraksts[[#This Row],[IZPILDES DATUMS]]-TODAY())),\"\")","v":""},"Pabeigts",null,null,"Statusa datu griezums ir šajā šūnā. Lai filtrētu pēc statusa, griezumā atlasiet statusu. Lai atlasītu vairākas opcijas, turiet nospiestu taustiņu Ctrl"]
[null,"Pasūtīt uzlīmes","Materiāli",{"$f":"DATE(YEAR(TODAY()),MONTH(TODAY())-1,11)","v":"2018-04-11"},{"$f":"DATE(YEAR(TODAY()),MONTH(TODAY())-1,21)","v":"2018-04-21"},{"$f":"IFERROR(IF(COUNT(Saraksts[[#This Row],[SĀKUMA DATUMS]]:Saraksts[[#This Row],[IZPILDES DATUMS]])<>2,\"\",IF(OR(Saraksts[[#This Row],[STATUSS]]=\"Pabeigts\",Saraksts[[#This Row],[STATUSS]]=\"Atcelts\",Saraksts[[#This Row],[STATUSS]]=\"Aizturēts\"),\"\",Saraksts[[#This Row],[IZPILDES DATUMS]]-TODAY())),\"\")","v":""},"Pabeigts"]
[null,"Mazgātās un vaskotās grīdas","Citi",{"$f":"DATE(YEAR(TODAY()),MONTH(TODAY()-1),DAY(TODAY())-25)","v":"2018-04-15"},{"$f":"DATE(YEAR(TODAY()),MONTH(TODAY())-1,26)","v":"2018-04-26"},{"$f":"IFERROR(IF(COUNT(Saraksts[[#This Row],[SĀKUMA DATUMS]]:Saraksts[[#This Row],[IZPILDES DATUMS]])<>2,\"\",IF(OR(Saraksts[[#This Row],[STATUSS]]=\"Pabeigts\",Saraksts[[#This Row],[STATUSS]]=\"Atcelts\",Saraksts[[#This Row],[STATUSS]]=\"Aizturēts\"),\"\",Saraksts[[#This Row],[IZPILDES DATUMS]]-TODAY())),\"\")","v":""},"Pabeigts"]
[null,"Izveidotās nosaukumu etiķetes","Materiāli",{"$f":"DATE(YEAR(TODAY()),MONTH(TODAY())-1,21)","v":"2018-04-21"},{"$f":"DATE(YEAR(TODAY()),MONTH(TODAY())-1,1)","v":"2018-04-01"},{"$f":"IFERROR(IF(COUNT(Saraksts[[#This Row],[SĀKUMA DATUMS]]:Saraksts[[#This Row],[IZPILDES DATUMS]])<>2,\"\",IF(OR(Saraksts[[#This Row],[STATUSS]]=\"Pabeigts\",Saraksts[[#This Row],[STATUSS]]=\"Atcelts\",Saraksts[[#This Row],[STATUSS]]=\"Aizturēts\"),\"\",Saraksts[[#This Row],[IZPILDES DATUMS]]-TODAY())),\"\")","v":""},"Aizturēts"]
[null,"Novērtēt ceturkšņa rakstiskās atskaites","Novērtējumi",{"$f":"DATE(YEAR(TODAY()),MONTH(TODAY())-1,26)","v":"2018-04-26"},{"$f":"TODAY()-5","v":"2018-05-05"},{"$f":"IFERROR(IF(COUNT(Saraksts[[#This Row],[SĀKUMA DATUMS]]:Saraksts[[#This Row],[IZPILDES DATUMS]])<>2,\"\",IF(OR(Saraksts[[#This Row],[STATUSS]]=\"Pabeigts\",Saraksts[[#This Row],[STATUSS]]=\"Atcelts\",Saraksts[[#This Row],[STATUSS]]=\"Aizturēts\"),\"\",Saraksts[[#This Row],[IZPILDES DATUMS]]-TODAY())),\"\")","v":-5},"Nokavēts"]
[null,"E-pasta atgādinājums par atļauju kartītēm","Tālruņa zvani",{"$f":"DATE(YEAR(TODAY()),MONTH(TODAY()),1)","v":"2018-05-01"},{"$f":"TODAY()","v":"2018-05-10"},{"$f":"IFERROR(IF(COUNT(Saraksts[[#This Row],[SĀKUMA DATUMS]]:Saraksts[[#This Row],[IZPILDES DATUMS]])<>2,\"\",IF(OR(Saraksts[[#This Row],[STATUSS]]=\"Pabeigts\",Saraksts[[#This Row],[STATUSS]]=\"Atcelts\",Saraksts[[#This Row],[STATUSS]]=\"Aizturēts\"),\"\",Saraksts[[#This Row],[IZPILDES DATUMS]]-TODAY())),\"\")","v":""},"Atcelts"]
[null,"Novērtēt mutiskās atskaites","Office",{"$f":"DATE(YEAR(TODAY()),MONTH(TODAY()),7)","v":"2018-05-07"},{"$f":"DATE(YEAR(TODAY()),MONTH(TODAY()),17)","v":"2018-05-17"},{"$f":"IFERROR(IF(COUNT(Saraksts[[#This Row],[SĀKUMA DATUMS]]:Saraksts[[#This Row],[IZPILDES DATUMS]])<>2,\"\",IF(OR(Saraksts[[#This Row],[STATUSS]]=\"Pabeigts\",Saraksts[[#This Row],[STATUSS]]=\"Atcelts\",Saraksts[[#This Row],[STATUSS]]=\"Aizturēts\"),\"\",Saraksts[[#This Row],[IZPILDES DATUMS]]-TODAY())),\"\")","v":7},"Notiek izpilde"]
[null,"Uzasināt zīmuļus","Materiāli",{"$f":"DATE(YEAR(TODAY()),MONTH(TODAY()),11)","v":"2018-05-11"},{"$f":"DATE(YEAR(TODAY()),MONTH(TODAY()),10)","v":"2018-05-10"},{"$f":"IFERROR(IF(COUNT(Saraksts[[#This Row],[SĀKUMA DATUMS]]:Saraksts[[#This Row],[IZPILDES DATUMS]])<>2,\"\",IF(OR(Saraksts[[#This Row],[STATUSS]]=\"Pabeigts\",Saraksts[[#This Row],[STATUSS]]=\"Atcelts\",Saraksts[[#This Row],[STATUSS]]=\"Aizturēts\"),\"\",Saraksts[[#This Row],[IZPILDES DATUMS]]-TODAY())),\"\")","v":0},"Notiek izpilde"]

{"sheet":" Saraksta dati","index":1,"n_rows":13,"n_cols":3,"rows_kept":13}
[null,"Saraksta dati","Skolotāja saraksts"]
[null,"Kategorija"]
[null,"Office"]
[null,"Materiāli"]
[null,"Jāiegādājas"]
[null,"Tālruņa zvani"]
[null,"Jaunas idejas"]
[null,"Novērtējumi"]
[null,"Komanda"]
[null,"Starpniecības"]
[null,"Dators"]
[null,"Personisks"]
[null,"Citi"]